[Event "Israel Championship 2021"]
[Site "Haifa"]
[Date "2021.03.14"]
[Round "8.10"]
[White "Ben Ari, Yannay"]
[Black "Kupervaser, Erez"]
[Result "1/2-1/2"]
[ECO "A47"]
[WhiteElo "2403"]
[BlackElo "2371"]
[Annotator "ChessBase"]
[PlyCount "89"]
[EventDate "2021.01.10"]
[EventType "swiss"]
[EventCountry "ISR"]
[SourceTitle "playchess.com"]
[Source "ChessBase"]
[SourceQuality "1"]
[TimeControl "40/5400+30:3600+30"]

1. d4 {[%emt 0:00:10]} Nf6 {[%emt 0:00:00]} 2. Bf4 {[%emt 0:02:50]} e6 {[%emt 0:02:22]} 3. e3 {[%emt 0:00:32]} b6 {[%emt 0:00:23]} 4. Nf3 {[%emt 0:03:54]} Bb7 {[%emt 0:00:14]} 5. Bd3 {[%emt 0:05:03]} Bd6 {[%emt 0:04:30]} 6. Bg3 {[%emt 0:03:10]} Bxg3 {[%emt 0:01:20]} 7. hxg3 {[%emt 0:00:02]} d6 {[%emt 0:01:09]} 8. Nbd2 {[%emt 0:01:48]} Nbd7 {[%emt 0:05:14]} 9. e4 {[%emt 0:02:33]} e5 {[%emt 0:00:54]} 10. c3 {[%emt 0:01:10]} Qe7 {[%emt 0:06:15]} 11. Qe2 {[%emt 0:01:14]} O-O {[%emt 0:03:34]} 12. O-O-O {[%emt 0:09:26]} Rfe8 {[%emt 0:07:44]} 13. Rh4 {[%emt 0:03:40]} Nf8 {[%emt 0:06:52]} 14. Re1 {[%emt 0:16:10]} Ng6 {[%emt 0:00:30]} 15. Rhh1 {[%emt 0:00:30]} a5 {[%emt 0:00:30]} 16. Kb1 {[%emt 0:00:30]} Rad8 {[%emt 0:17:11]} 17. d5 {[%emt 0:15:00]} c6 {[%emt 0:01:24]} 18. c4 {[%emt 0:00:47]} a4 {[%emt 0:38:54]} 19. Rc1 {[%emt 0:05:17]} Nd7 {[%emt 0:00:00]} 20. Nh4 {[%emt 0:10:03]} Nxh4 {[%emt 0:00:00]} 21. Rxh4 {[%emt 0:00:28]} h6 {[%emt 0:00:00]} 22. Nf1 {[%emt 0:03:27]} Nc5 {[%emt 0:00:00]} 23. dxc6 {[%emt 0:01:03]} Bxc6 {[%emt 0:00:00]} 24. Ne3 {[%emt 0:00:07]} Qb7 {[%emt 0:00:00]} 25. Nf5 {[%emt 0:00:58]} Re6 {[%emt 0:00:00]} 26. Ka1 {[%emt 0:03:28]} Rb8 {[%emt 0:00:00]} 27. Rd1 {[%emt 0:02:40]} Qa7 {[%emt 0:00:00]} 28. g4 {[%emt 0:02:23]} b5 {[%emt 0:00:00]} 29. g5 {[%emt 0:02:37]} Nxd3 {[%emt 0:00:00]} 30. Rxd3 {[%emt 0:01:45]} bxc4 {[%emt 0:00:00]} 31. Rg3 {[%emt 0:00:55]} Rb3 {[%emt 0:06:30]} 32. gxh6 {[%emt 0:02:20]} g6 {[%emt 0:00:00]} 33. Qd2 {[%emt 0:00:00]} Kh7 {[%emt 0:00:00]} 34. Kb1 {[%emt 0:00:16]} c3 {[%emt 0:00:00]} 35. Rxc3 {[%emt 0:00:11]} Rxc3 {[%emt 0:00:00]} 36. Qxc3 {[%emt 0:00:37]} Qxf2 {[%emt 0:02:30]} 37. Qxc6 {[%emt 0:00:48]} gxf5 {[%emt 0:00:30]} 38. exf5 {[%emt 0:00:32]} Qxf5+ {[%emt 0:00:00]} 39. Qe4 {[%emt 0:01:06]} Qxe4+ 40. Rxe4 {[%emt 0:00:30]} f5 {[%emt 0:00:00]} 41. Rxa4 {[%emt 0:31:30]} e4 {[%emt 1:02:00]} 42. Kc1 {[%emt 0:02:48]} Rg6 43. Ra5 {[%emt 0:00:08]} Rxg2 44. Rxf5 {[%emt 0:05:34]} e3 45. Rf7+ {[%emt 0:22:30]} 1/2-1/2

[Event "Israel Championship 2021"]
[Site "Haifa"]
[Date "2021.03.14"]
[Round "8.11"]
[White "Aizenberg, Benny"]
[Black "Dvoirys, Semen I."]
[Result "0-1"]
[ECO "B97"]
[WhiteElo "2307"]
[BlackElo "2483"]
[Annotator "ChessBase"]
[PlyCount "90"]
[EventDate "2021.01.10"]
[EventType "swiss"]
[EventCountry "ISR"]
[SourceTitle "playchess.com"]
[Source "ChessBase"]
[SourceQuality "1"]
[TimeControl "40/5400+30:3600+30"]

1. e4 {[%emt 0:00:00]} c5 {[%emt 0:00:00]} 2. Nf3 {[%emt 0:00:00]} d6 {[%emt 0:00:31]} 3. d4 {[%emt 0:00:00]} cxd4 {[%emt 0:00:07]} 4. Nxd4 {[%emt 0:00:00]} Nf6 {[%emt 0:00:07]} 5. Nc3 {[%emt 0:00:00]} a6 {[%emt 0:00:06]} 6. Bg5 {[%emt 0:00:00]} e6 {[%emt 0:00:08]} 7. f4 {[%emt 0:00:00]} Qb6 {[%emt 0:00:44]} 8. Qd2 {[%emt 0:00:00]} Qxb2 {[%emt 0:00:06]} 9. Rb1 {[%emt 0:00:00]} Qa3 {[%emt 0:00:07]} 10. f5 {[%emt 0:00:00]} Nc6 {[%emt 0:00:06]} 11. fxe6 {[%emt 0:00:00]} fxe6 {[%emt 0:00:06]} 12. Nxc6 {[%emt 0:00:00]} bxc6 {[%emt 0:00:08]} 13. Be2 {[%emt 0:00:02]} Qa5 {[%emt 0:08:43]} 14. O-O {[%emt 0:14:46]} Be7 {[%emt 0:00:59]} 15. Kh1 {[%emt 0:10:35]} Qd8 {[%emt 0:06:49]} 16. Bxf6 {[%emt 0:11:56]} Bxf6 {[%emt 0:00:30]} 17. Bh5+ {[%emt 0:07:33]} g6 {[%emt 0:09:22]} 18. Qh6 {[%emt 0:12:45]} Qe7 {[%emt 0:14:46]} 19. Bxg6+ {[%emt 0:04:31]} Kd8 {[%emt 0:02:44]} 20. Qd2 {[%emt 0:15:10]} hxg6 {[%emt 0:00:56]} 21. Rxf6 {[%emt 0:01:07]} Qxf6 {[%emt 0:00:04]} 22. Qxd6+ {[%emt 0:00:06]} Bd7 {[%emt 0:06:38]} 23. Rd1 {[%emt 0:06:16]} Qe7 {[%emt 0:02:36]} 24. Qe5 {[%emt 0:00:28]} Rh5 {[%emt 0:00:44]} 25. Qg3 {[%emt 0:00:01]} Ra5 {[%emt 0:07:06]} 26. Qe1 {[%emt 0:01:56]} Ra3 {[%emt 0:02:26]} 27. Nb1 {[%emt 0:02:40]} Rxa2 {[%emt 0:01:27]} 28. Qc3 {[%emt 0:00:09]} Rb8 {[%emt 0:01:25]} 29. Nd2 {[%emt 0:02:48]} Ra4 {[%emt 0:07:08]} 30. Nb3 {[%emt 0:02:58]} Rxb3 {[%emt 0:03:11]} 31. Qxb3 {[%emt 0:00:07]} Rb4 {[%emt 0:00:19]} 32. Qd3 {[%emt 0:00:57]} Rb6 {[%emt 0:04:37]} 33. e5 {[%emt 0:02:02]} g5 {[%emt 0:00:11]} 34. Qg6 {[%emt 0:02:22]} Kc7 {[%emt 0:00:33]} 35. h3 {[%emt 0:00:42]} Rb5 {[%emt 0:00:28]} 36. Qd3 {[%emt 0:00:59]} Rd5 {[%emt 0:00:30]} 37. Qe2 {[%emt 0:00:01]} Rxd1+ {[%emt 0:00:27]} 38. Qxd1 {[%emt 0:00:02]} Qc5 {[%emt 0:00:08]} 39. Qe2 {[%emt 0:00:30]} a5 {[%emt 0:00:10]} 40. Qe4 {[%emt 0:00:50]} Qd5 {[%emt 0:00:36]} 41. Qe3 {[%emt 1:00:09]} c5 {[%emt 1:01:33]} 42. Qxg5 {[%emt 0:00:36]} a4 {[%emt 0:00:12]} 43. c4 {[%emt 0:01:02]} Qxc4 {[%emt 0:00:20]} 44. Qd2 {[%emt 0:00:19]} Qd5 {[%emt 0:00:27]} 45. Qb2 {[%emt 0:01:06]} Bc6 {[%emt 0:00:09]} 0-1

[Event "Israel Championship 2021"]
[Site "Haifa"]
[Date "2021.03.14"]
[Round "8.12"]
[White "Haimovich, Tal"]
[Black "Efroimski, Marsel"]
[Result "1/2-1/2"]
[ECO "D33"]
[WhiteElo "2375"]
[BlackElo "2357"]
[Annotator "ChessBase"]
[PlyCount "134"]
[EventDate "2021.01.10"]
[EventType "swiss"]
[EventCountry "ISR"]
[SourceTitle "playchess.com"]
[Source "ChessBase"]
[SourceQuality "1"]
[TimeControl "40/5400+30:3600+30"]

1. d4 {[%emt 0:00:00]} d5 {[%emt 0:08:37]} 2. c4 {[%emt 0:00:00]} e6 {[%emt 0:00:08]} 3. Nc3 {[%emt 0:00:00]} c5 {[%emt 0:00:10]} 4. cxd5 {[%emt 0:00:00]} exd5 {[%emt 0:00:04]} 5. Nf3 {[%emt 0:00:00]} Nc6 {[%emt 0:00:03]} 6. g3 {[%emt 0:00:01]} Nf6 {[%emt 0:00:07]} 7. Bg2 {[%emt 0:00:06]} cxd4 {[%emt 0:00:03]} 8. Nxd4 {[%emt 0:00:04]} Bc5 {[%emt 0:00:02]} 9. Nb3 {[%emt 0:00:04]} Bb6 {[%emt 0:00:03]} 10. O-O {[%emt 0:00:11]} d4 {[%emt 0:00:06]} 11. Na4 {[%emt 0:00:05]} O-O {[%emt 0:00:06]} 12. Bg5 {[%emt 0:00:42]} Re8 {[%emt 0:00:04]} 13. Nxb6 {[%emt 0:04:36]} axb6 {[%emt 0:00:10]} 14. Re1 {[%emt 0:00:37]} Be6 {[%emt 0:20:18]} 15. Bxc6 {[%emt 0:19:35]} Bxb3 {[%emt 0:13:21]} 16. Qxb3 {[%emt 0:00:12]} bxc6 {[%emt 0:00:03]} 17. e3 {[%emt 0:26:28]} h6 {[%emt 0:19:55]} 18. Bxf6 {[%emt 0:03:09]} Qxf6 {[%emt 0:00:02]} 19. exd4 {[%emt 0:01:03]} Qxd4 {[%emt 0:05:12]} 20. Rxe8+ {[%emt 0:09:01]} Rxe8 {[%emt 0:00:12]} 21. Rd1 {[%emt 0:00:05]} Qg4 {[%emt 0:02:46]} 22. Kg2 {[%emt 0:01:11]} Qe4+ {[%emt 0:04:37]} 23. Qf3 {[%emt 0:02:12]} Qe6 {[%emt 0:01:03]} 24. a3 {[%emt 0:05:46]} c5 {[%emt 0:01:05]} 25. Rd3 {[%emt 0:01:44]} Qc4 {[%emt 0:05:32]} 26. Rc3 {[%emt 0:11:29]} Qd4 {[%emt 0:06:28]} 27. Qb7 {[%emt 0:03:42]} Re6 {[%emt 0:04:49]} 28. Rf3 {[%emt 0:06:49]} Rf6 {[%emt 0:00:06]} 29. Rxf6 {[%emt 0:00:24]} Qxf6 {[%emt 0:00:07]} 30. b4 {[%emt 0:00:02]} cxb4 {[%emt 0:02:23]} 31. axb4 {[%emt 0:00:17]} Kf8 {[%emt 0:01:23]} 32. Qd7 {[%emt 0:01:21]} g5 {[%emt 0:00:56]} 33. b5 {[%emt 0:01:11]} Kg7 {[%emt 0:01:18]} 34. h3 {[%emt 0:00:49]} Qe5 {[%emt 0:00:49]} 35. Qc6 {[%emt 0:00:59]} Qd4 {[%emt 0:00:07]} 36. Qf3 {[%emt 0:02:23]} Kg6 {[%emt 0:02:00]} 37. g4 {[%emt 0:00:22]} Kg7 {[%emt 0:00:10]} 38. Qf5 {[%emt 0:00:10]} Kg8 {[%emt 0:01:05]} 39. Kf3 {[%emt 0:00:23]} Qc3+ {[%emt 0:00:46]} 40. Kg2 {[%emt 0:01:05]} Qd4 {[%emt 0:00:04]} 41. Qc8+ {[%emt 0:44:23]} Kg7 {[%emt 0:30:38]} 42. Qc6 {[%emt 0:00:08]} Kh7 {[%emt 0:00:22]} 43. Qf3 {[%emt 0:05:20]} Kg7 {[%emt 0:00:04]} 44. Qf5 {[%emt 0:03:13]} Kg8 {[%emt 0:00:17]} 45. Kf3 {[%emt 0:01:57]} Qc3+ {[%emt 0:00:36]} 46. Ke4 {[%emt 0:01:40]} Qc4+ {[%emt 0:21:30]} 47. Ke3 {[%emt 0:00:45]} Qc3+ {[%emt 0:00:31]} 48. Qd3 {[%emt 0:00:37]} Qc5+ {[%emt 0:01:14]} 49. Ke2 {[%emt 0:00:31]} Kg7 {[%emt 0:01:17]} 50. Qd7 {[%emt 0:01:09]} Kf6 {[%emt 0:04:26]} 51. Kf3 {[%emt 0:00:37]} Qc3+ {[%emt 0:01:16]} 52. Kg2 {[%emt 0:04:01]} Qc5 {[%emt 0:00:27]} 53. Kf1 {[%emt 0:00:29]} Qc4+ {[%emt 0:00:58]} 54. Kg1 {[%emt 0:00:06]} Qc1+ {[%emt 0:01:42]} 55. Kh2 {[%emt 0:00:45]} Qc5 {[%emt 0:01:57]} 56. Kg2 {[%emt 0:00:22]} Kg7 {[%emt 0:00:14]} 57. Qd3 {[%emt 0:01:39]} Kf6 {[%emt 0:01:06]} 58. Qd7 {[%emt 0:01:09]} Kg7 {[%emt 0:00:06]} 59. Kf1 {[%emt 0:01:28]} Kf6 {[%emt 0:00:36]} 60. Qe8 {[%emt 0:00:32]} Qc4+ {[%emt 0:01:03]} 61. Kg1 {[%emt 0:00:13]} Qd5 {[%emt 0:01:55]} 62. Kf1 {[%emt 0:00:53]} Qd1+ {[%emt 0:00:39]} 63. Kg2 {[%emt 0:00:07]} Qd5+ {[%emt 0:00:08]} 64. Kg1 {[%emt 0:00:24]} Qd1+ {[%emt 0:01:33]} 65. Kg2 {[%emt 0:00:20]} Qd6 {[%emt 0:00:42]} 66. Qe4 {[%emt 0:00:57]} Qc5 {[%emt 0:00:14]} 67. Qe8 {[%emt 0:00:33]} Qd5+ {[%emt 0:00:38]} 1/2-1/2

[Event "Israel Championship 2021"]
[Site "Haifa"]
[Date "2021.03.14"]
[Round "8.13"]
[White "Kraus, Ohad"]
[Black "Lahav, Michal"]
[Result "0-1"]
[ECO "D10"]
[WhiteElo "2363"]
[BlackElo "2216"]
[Annotator "NA"]
[PlyCount "110"]
[EventDate "2021.01.10"]
[EventType "swiss"]
[EventCountry "ISR"]
[SourceTitle "playchess.com"]
[Source "ChessBase"]
[SourceQuality "1"]
[TimeControl "40/5400+30:3600+30"]

1. d4 {[%emt 0:00:00]} d5 {[%emt 0:00:00]} 2. c4 {[%emt 0:00:00]} c6 {[%emt 0:00:00]} 3. Nc3 {[%emt 0:00:00]} Nf6 {[%emt 0:00:00]} 4. cxd5 {[%emt 0:00:54]} cxd5 {[%emt 0:00:00]} 5. Bf4 {[%emt 0:00:17]} a6 {[%emt 0:00:32]} 6. e3 {[%emt 0:01:02]} Nc6 {[%emt 0:00:50]} 7. Bd3 {[%emt 0:00:41]} Bg4 {[%emt 0:08:02]} 8. f3 {[%emt 0:05:20]} Bd7 {[%emt 0:14:29]} 9. Nge2 {[%emt 0:01:37]} e6 {[%emt 0:02:34]} 10. Bg3 {[%emt 0:05:14]} Rc8 {[%emt 0:01:42]} 11. O-O {[%emt 0:03:03]} Na5 {[%emt 0:14:46]} 12. b3 {[%emt 0:24:44]} Bb4 {[%emt 0:02:02]} 13. Rc1 {[%emt 0:01:10]} O-O {[%emt 0:01:22]} 14. Nb1 {[%emt 0:02:59]} Qb6 {[%emt 0:06:15]} 15. a3 {[%emt 0:07:57]} Rxc1 {[%emt 0:06:04]} 16. Nxc1 {[%emt 0:00:05]} Be7 {[%emt 0:00:09]} 17. Be1 {[%emt 0:19:51]} Bb5 {[%emt 0:03:32]} 18. Rf2 {[%emt 0:02:16]} Bxd3 {[%emt 0:02:42]} 19. Nxd3 {[%emt 0:01:10]} Rc8 {[%emt 0:04:57]} 20. Rb2 {[%emt 0:03:14]} Nd7 {[%emt 0:02:10]} 21. Qd2 {[%emt 0:01:04]} Nc6 {[%emt 0:01:14]} 22. b4 {[%emt 0:03:01]} Qa7 {[%emt 0:04:06]} 23. Rc2 {[%emt 0:00:22]} Nb6 {[%emt 0:00:48]} 24. Nb2 {[%emt 0:00:31]} Bd6 {[%emt 0:04:28]} 25. Bf2 {[%emt 0:02:06]} Qb8 {[%emt 0:00:35]} 26. g3 $15 {[%emt 0:03:26]} Qc7 {[%emt 0:04:47]} 27. Kg2 {[%emt 0:00:44]} Qd7 {[%emt 0:00:02]} 28. Qd3 {[%emt 0:02:58]} Ne7 {[%emt 0:04:37]} 29. Nd2 {[%emt 0:02:11]} Rxc2 {[%emt 0:07:10]} 30. Qxc2 {[%emt 0:00:02]} Qc6 {[%emt 0:00:01]} 31. Qxc6 {[%emt 0:00:29]} Nxc6 {[%emt 0:00:04]} 32. Nb3 {[%emt 0:05:45]} Nc4 {[%emt 0:00:08]} 33. Nxc4 {[%emt 0:00:06]} dxc4 {[%emt 0:00:02]} 34. Nd2 {[%emt 0:00:51]} b5 {[%emt 0:01:00]} 35. Nb1 {[%emt 0:00:26]} Nxb4 {[%emt 0:05:03]} 36. axb4 {[%emt 0:01:46]} Bxb4 {[%emt 0:00:03]} 37. Kf1 {[%emt 0:00:26]} c3 {[%emt 0:00:01]} 38. Nxc3 {[%emt 0:00:06]} Bxc3 {[%emt 0:00:01]} 39. Ke2 {[%emt 0:00:18]} Kf8 {[%emt 0:02:35]} 40. Kd3 {[%emt 0:00:13]} Bb4 {[%emt 0:00:02]} 41. e4 {[%emt 1:00:55]} Ke7 {[%emt 1:00:25]} 42. g4 {[%emt 0:00:00]} Kd6 {[%emt 0:00:00]} 43. Kc2 {[%emt 0:00:00]} Kc6 {[%emt 0:00:00]} 44. Kb3 {[%emt 0:00:00]} Bd6 {[%emt 0:00:00]} 45. Bg3 {[%emt 0:00:00]} Bxg3 {[%emt 0:00:00]} 46. hxg3 {[%emt 0:00:00]} h6 {[%emt 0:00:00]} 47. Kb4 {[%emt 0:00:00]} Kb6 {[%emt 0:00:00]} 48. Kc3 {[%emt 0:00:00]} a5 {[%emt 0:00:00]} 49. Kb3 {[%emt 0:00:00]} Kc6 {[%emt 0:00:00]} 50. Kc3 {[%emt 0:00:00]} Kd6 {[%emt 0:00:00]} 51. Kb3 {[%emt 0:00:00]} g6 {[%emt 0:06:10]} 52. Kc3 {[%emt 0:00:00]} f5 {[%emt 0:00:00]} 53. Kb3 {[%emt 0:00:00]} fxe4 {[%emt 0:00:00]} 54. fxe4 {[%emt 0:00:00]} b4 {[%emt 0:00:00]} 55. Kc2 {[%emt 0:00:00]} a4 {[%emt 0:00:00]} 0-1

[Event "Israel Championship 2021"]
[Site "Haifa"]
[Date "2021.03.14"]
[Round "8.14"]
[White "Shohat, Yotam"]
[Black "Ben Artzi, Ido"]
[Result "1/2-1/2"]
[ECO "D42"]
[WhiteElo "2371"]
[BlackElo "2368"]
[Annotator "NA"]
[PlyCount "93"]
[EventDate "2021.01.10"]
[EventType "swiss"]
[EventCountry "ISR"]
[SourceTitle "playchess.com"]
[Source "ChessBase"]
[SourceQuality "1"]
[TimeControl "40/5400+30:3600+30"]

1. e4 {[%emt 0:00:00]} d5 {[%emt 0:02:08]} 2. exd5 {[%emt 0:00:00]} Nf6 {[%emt 0:00:12]} 3. c4 {[%emt 0:00:04]} c6 {[%emt 0:00:07]} 4. Nc3 {[%emt 0:00:11]} cxd5 {[%emt 0:00:21]} 5. d4 {[%emt 0:00:04]} e6 {[%emt 0:01:27]} 6. Nf3 {[%emt 0:00:06]} Nc6 {[%emt 0:00:41]} 7. cxd5 {[%emt 0:01:03]} Nxd5 {[%emt 0:00:53]} 8. Bd3 {[%emt 0:00:14]} Be7 {[%emt 0:01:08]} 9. O-O {[%emt 0:00:10]} O-O {[%emt 0:01:26]} 10. Re1 {[%emt 0:00:47]} Nxc3 {[%emt 0:10:24]} 11. bxc3 {[%emt 0:00:15]} b6 {[%emt 0:01:19]} 12. h4 {[%emt 0:01:06]} Bb7 {[%emt 0:02:52]} 13. Ng5 {[%emt 0:00:10]} Bxg5 {[%emt 0:01:42]} 14. hxg5 {[%emt 0:00:12]} Ne7 {[%emt 0:09:10]} 15. Qh5 {[%emt 0:08:23]} g6 {[%emt 0:00:12]} 16. Qh2 {[%emt 0:01:32]} Rc8 {[%emt 0:02:46]} 17. Bd2 {[%emt 0:04:10]} Qc7 {[%emt 0:04:25]} 18. Qh3 {[%emt 0:04:21]} Rfd8 {[%emt 0:09:29]} 19. Rac1 {[%emt 0:00:59]} Qd6 {[%emt 0:04:05]} 20. Qg4 {[%emt 0:11:28]} Nd5 {[%emt 0:03:03]} 21. Bf1 {[%emt 0:20:21]} Qa3 {[%emt 0:10:54]} 22. c4 {[%emt 0:04:16]} Qxa2 {[%emt 0:04:27]} 23. cxd5 {[%emt 0:07:48]} Qxd2 {[%emt 0:00:08]} 24. Rcd1 {[%emt 0:00:05]} Qa2 {[%emt 0:00:25]} 25. dxe6 {[%emt 0:00:13]} fxe6 {[%emt 0:00:05]} 26. Ra1 {[%emt 0:02:31]} Qd5 {[%emt 0:08:03]} 27. Re5 {[%emt 0:02:04]} Qd7 {[%emt 0:02:05]} 28. Rxa7 {[%emt 0:13:59]} Rc1 {[%emt 0:00:47] [#]} 29. d5 $1 {[%emt 0:00:56]} ({Inferior is} 29. Qxe6+ Qxe6 30. Rxe6 Bd5 $17) 29... exd5 {[%emt 0:01:00] [#]} 30. Qe2 $11 {[%emt 0:01:51]} (30. Qb4 $1 $16 Rc7 31. Qxb6) 30... Rdc8 {[%emt 0:06:17]} 31. Kh2 {[%emt 0:05:02]} Qc7 {[%emt 0:06:39]} 32. f4 {[%emt 0:02:19]} Rf8 {[%emt 0:02:00]} 33. Re7 {[%emt 0:08:50]} Qxf4+ {[%emt 0:00:46]} 34. g3 {[%emt 0:00:01]} Qf2+ {[%emt 0:03:22]} 35. Qxf2 {[%emt 0:00:12]} Rxf2+ {[%emt 0:00:01]} 36. Bg2 {[%emt 0:00:17]} Rcc2 {[%emt 0:02:36]} 37. Rexb7 {[%emt 0:01:01]} Rxg2+ {[%emt 0:00:02]} 38. Kh3 {[%emt 0:00:16]} Rh2+ {[%emt 0:00:25]} 39. Kg4 {[%emt 0:00:06]} Rc4+ {[%emt 0:00:38]} 40. Kf3 {[%emt 0:00:06]} Rc3+ {[%emt 0:00:49]} 41. Kg4 {[%emt 1:00:04]} Rc8 {[%emt 0:33:59]} 42. Rxb6 {[%emt 0:00:00]} Rd8 {[%emt 0:09:28]} 43. Rbb7 {[%emt 0:00:00]} Rh1 {[%emt 0:01:36]} 44. Kf3 {[%emt 0:00:00]} d4 {[%emt 0:03:36]} 45. Kg2 {[%emt 0:00:00]} Rh5 {[%emt 0:03:57]} 46. g4 {[%emt 0:00:00]} Rxg5 {[%emt 0:01:27]} 47. Rg7+ {[%emt 0:00:00]} 1/2-1/2

[Event "Israel Championship 2021"]
[Site "Haifa"]
[Date "2021.03.14"]
[Round "8.15"]
[White "Katz, Kiril"]
[Black "Gruenfeld, Yehuda"]
[Result "1/2-1/2"]
[ECO "B90"]
[WhiteElo "1957"]
[BlackElo "2412"]
[Annotator "NA"]
[PlyCount "141"]
[EventDate "2021.01.10"]
[EventType "swiss"]
[EventCountry "ISR"]
[SourceTitle "playchess.com"]
[Source "ChessBase"]
[SourceQuality "1"]
[TimeControl "40/5400+30:3600+30"]

1. e4 {[%emt 0:00:00]} c5 {[%emt 0:00:00]} 2. Nf3 {[%emt 0:00:00]} d6 {[%emt 0:00:26]} 3. d4 {[%emt 0:00:00]} cxd4 {[%emt 0:00:05]} 4. Nxd4 {[%emt 0:00:00]} Nf6 {[%emt 0:00:06]} 5. Nc3 {[%emt 0:00:07]} a6 {[%emt 0:00:07]} 6. f3 {[%emt 0:01:40]} Qb6 {[%emt 0:02:26]} 7. Nb3 {[%emt 0:00:15]} e6 {[%emt 0:00:26]} 8. Qe2 {[%emt 0:00:24]} Qc7 {[%emt 0:00:12]} 9. Be3 {[%emt 0:01:18]} b5 {[%emt 0:01:19]} 10. g4 {[%emt 0:16:20]} h6 {[%emt 0:01:18]} (10... b4 $11 11. Na4 Nbd7) 11. O-O-O {[%emt 0:01:50]} Nbd7 {[%emt 1:29:05]} 12. Qf2 {[%emt 0:17:05]} (12. a3 $14) 12... b4 {[%emt 0:00:00]} 13. Ne2 {[%emt 0:14:22]} d5 {[%emt 0:00:00]} 14. exd5 {[%emt 0:10:48]} Nxd5 {[%emt 0:00:00]} 15. Rxd5 {[%emt 0:01:23]} exd5 {[%emt 0:02:00]} 16. Bf4 {[%emt 0:32:28]} (16. Nf4 $142) 16... Bd6 {[%emt 0:00:30]} 17. Qd4 {[%emt 0:00:30]} (17. Qe3+ $17 Be5 18. Bxe5 Qxe5 19. Qxe5+ Nxe5 20. Nf4) 17... O-O {[%emt 0:00:30]} 18. Qxb4 {[%emt 0:00:30] [#]} Bxb4 {[%emt 0:00:00]} (18... Qxc2+ $3 $19 {[%mdl 512]} 19. Kxc2 Bxb4) 19. Bxc7 {[%emt 0:00:00]} Re8 {[%emt 0:01:00]} 20. c3 {[%emt 0:00:00]} Bf8 {[%emt 0:00:30]} 21. Nf4 {[%emt 0:01:30] [#]} (21. Ned4 $142) 21... Ra7 $1 {[%emt 0:00:00]} 22. Ba5 {[%emt 0:00:30] [#]} Nf6 {[%emt 0:00:00]} (22... Ne5 $1 $17 23. Nxd5 Nxf3) 23. Bb6 {[%emt 0:00:00]} Rae7 {[%emt 0:00:00]} 24. Bf2 {[%emt 0:01:00]} Rc7 {[%emt 0:02:00]} 25. h4 {[%emt 0:00:00]} Bd6 {[%emt 0:00:30]} 26. Nd3 {[%emt 0:00:00]} Nd7 {[%emt 0:00:00]} 27. Nd4 {[%emt 0:01:30]} Nc5 {[%emt 0:01:00]} 28. Nxc5 {[%emt 0:00:00]} Bxc5 {[%emt 0:00:30]} 29. a3 {[%emt 0:00:00]} Rce7 {[%emt 0:00:30]} 30. Kd2 {[%emt 0:00:00]} Bd6 {[%emt 0:00:00]} (30... Bxd4 $5 31. Bxd4 Re1 $15) 31. Nc6 {[%emt 0:02:00]} Bf4+ {[%emt 0:01:00]} 32. Kd1 {[%emt 0:00:00]} Re6 {[%emt 0:00:00]} 33. Nd4 {[%emt 0:01:00]} Rb6 {[%emt 0:00:00]} 34. b4 {[%emt 0:00:00]} Bd7 {[%emt 0:01:30]} 35. Bd3 {[%emt 0:01:00]} a5 {[%emt 0:00:30]} 36. Bc2 {[%emt 0:00:30]} axb4 {[%emt 0:00:00]} 37. Nb3 $2 {[%emt 0:00:00]} (37. cxb4 {is a better defense.} Ra8 38. Ke2) 37... Ra6 {[%emt 0:01:00]} 38. axb4 {[%emt 0:01:00]} Ra2 {[%emt 0:00:30]} 39. Re1 {[%emt 0:00:00]} Rxe1+ $2 {[%emt 0:00:00]} (39... Rc8 $19 {and Black stays clearly on top.} 40. Bd4 Ba4) 40. Bxe1 {[%emt 0:00:00]} Bb5 {[%emt 0:01:00]} 41. Bd2 {[%emt 1:01:30]} Bg3 {[%emt 0:00:00]} 42. h5 {[%emt 0:00:00]} Bc4 {[%emt 1:01:00]} 43. Kc1 {[%emt 0:01:00]} Bf2 $15 {[%emt 0:00:00]} 44. Na5 {[%emt 0:00:30]} Be2 {[%emt 0:01:00]} 45. Kb1 {[%emt 0:00:30]} Rxc2 {[%emt 0:00:30]} 46. Kxc2 {[%emt 0:00:00]} Bxf3 {[%emt 0:00:30]} 47. g5 {[%emt 0:01:00]} hxg5 {[%emt 0:00:30]} 48. Bxg5 {[%emt 0:00:30]} Bxh5 {[%emt 0:00:00]} 49. Kd3 {[%emt 0:00:30]} Bb6 {[%emt 0:00:00]} 50. Nc6 {[%emt 0:00:30]} Kf8 {[%emt 0:01:30]} 51. Be7+ {[%emt 0:00:00]} Ke8 {[%emt 0:00:00]} 52. Bc5 {[%emt 0:01:00]} Bxc5 {[%emt 0:01:00]} 53. bxc5 {[%emt 0:00:30]} Kd7 {[%emt 0:00:30]} 54. Ne5+ {[%emt 0:00:00]} Ke6 {[%emt 0:00:00]} 55. Kd4 {[%emt 0:00:00]} f6 {[%emt 0:00:00]} 56. Nd3 {[%emt 0:00:00]} g5 {[%emt 0:00:00]} 57. c6 {[%emt 0:02:00]} Kd6 {[%emt 0:00:00]} 58. c7 {[%emt 0:00:00]} Kxc7 {[%emt 0:00:00]} 59. Kxd5 {[%emt 0:00:00]} Bf7+ {[%emt 0:00:00]} 60. Kd4 {[%emt 0:01:30]} Kd6 {[%emt 0:00:00]} 61. c4 {[%emt 0:00:00]} Be8 {[%emt 0:00:00]} 62. c5+ {[%emt 0:00:00]} Ke6 {[%emt 0:00:00]} 63. Nb4 {[%emt 0:01:30]} f5 {[%emt 0:05:00]} 64. c6 {[%emt 0:00:00]} Kd6 {[%emt 0:00:30]} 65. c7 {[%emt 0:01:00]} Bd7 {[%emt 0:00:30]} 66. Nd3 {[%emt 0:00:30]} Bc8 {[%emt 0:00:30]} 67. Ne5 {[%emt 0:00:30]} Kxc7 {[%emt 0:00:30]} 68. Nf7 {[%emt 0:00:00]} g4 {[%emt 0:00:00]} 69. Ke3 {[%emt 0:01:00]} g3 {[%emt 0:00:00]} 70. Kf3 {[%emt 0:00:30]} f4 {[%emt 0:00:00]} 71. Ng5 {[%emt 0:00:00]} 1/2-1/2